[Event "Early-Titled-Tuesday-Blitz-May-28-2024"]
[Site "Chess.com"]
[Date "2024.05.28"]
[Round "1"]
[White "Felix-Rose"]
[Black "dmosesov"]
[Result "0-1"]
[WhiteElo "2331"]
[BlackElo "2642"]
[TimeControl "180+1"]
[EndTime "8:04:54 PDT"]
[Termination "dmosesov won by resignation"]

1. e4 {[%clk 0:02:56.5]} 1... e5 {[%clk 0:02:59.4]} 2. Nf3 {[%clk 0:02:54.4]}
2... Nc6 {[%clk 0:02:59.8]} 3. Nc3 {[%clk 0:02:54]} 3... Nf6 {[%clk 0:02:59.3]}
4. Bb5 {[%clk 0:02:54]} 4... Bd6 {[%clk 0:02:55.7]} 5. Bxc6 {[%clk 0:02:51.5]}
5... dxc6 {[%clk 0:02:55.7]} 6. d3 {[%clk 0:02:50.2]} 6... h6 {[%clk 0:02:41.7]}
7. O-O {[%clk 0:02:48.8]} 7... O-O {[%clk 0:02:41.8]} 8. Ne2 {[%clk 0:02:47.2]}
8... Nh5 {[%clk 0:02:23.5]} 9. Kh1 {[%clk 0:02:29.9]} 9... f5 {[%clk 0:02:01.4]}
10. exf5 {[%clk 0:02:26.8]} 10... Bxf5 {[%clk 0:02:02.3]} 11. b3 {[%clk
0:02:15.4]} 11... e4 {[%clk 0:01:46.7]} 12. dxe4 {[%clk 0:01:58.3]} 12... Bxe4
{[%clk 0:01:47.6]} 13. Nfg1 {[%clk 0:01:35.4]} 13... Qh4 {[%clk 0:01:27]} 14. h3
{[%clk 0:01:15.6]} 14... Rxf2 {[%clk 0:00:59.2]} 15. Nf3 {[%clk 0:01:09.6]}
15... Bxf3 {[%clk 0:00:56.1]} 16. Rxf2 {[%clk 0:01:04.2]} 16... Qxf2 {[%clk
0:00:53.5]} 0-1

[Event "Early-Titled-Tuesday-Blitz-May-28-2024"]
[Site "Chess.com"]
[Date "2024.05.28"]
[Round "1"]
[White "kleinebeer98"]
[Black "LiadCuba"]
[Result "1-0"]
[WhiteElo "2963"]
[BlackElo "2518"]
[TimeControl "180+1"]
[EndTime "8:05:04 PDT"]
[Termination "kleinebeer98 won on time"]

1. e4 {[%clk 0:02:58.9]} 1... c5 {[%clk 0:02:52]} 2. Nf3 {[%clk 0:02:58.7]} 2...
d6 {[%clk 0:02:51.8]} 3. d4 {[%clk 0:02:59]} 3... cxd4 {[%clk 0:02:52.7]} 4.
Nxd4 {[%clk 0:02:59.8]} 4... Nf6 {[%clk 0:02:52.9]} 5. Nc3 {[%clk 0:03:00.5]}
5... a6 {[%clk 0:02:53.5]} 6. a3 {[%clk 0:02:58.8]} 6... e5 {[%clk 0:02:51.8]}
7. Nf5 {[%clk 0:02:59.3]} 7... d5 {[%clk 0:02:50]} 8. Bg5 {[%clk 0:02:59.8]}
8... d4 {[%clk 0:02:37.3]} 9. Bxf6 {[%clk 0:02:58.3]} 9... gxf6 {[%clk
0:02:38.2]} 10. Nb1 {[%clk 0:02:58]} 10... Bxf5 {[%clk 0:02:37.9]} 11. exf5
{[%clk 0:02:58.9]} 11... Nd7 {[%clk 0:02:33]} 12. Qh5 {[%clk 0:02:56.1]} 12...
Nb6 {[%clk 0:02:22.2]} 13. Nd2 {[%clk 0:02:54.5]} 13... Qc7 {[%clk 0:02:11.2]}
14. Bd3 {[%clk 0:02:52.1]} 14... O-O-O {[%clk 0:02:06]} 15. O-O {[%clk
0:02:51.3]} 15... Nd5 {[%clk 0:02:01.4]} 16. g3 {[%clk 0:02:51.5]} 16... Rg8
{[%clk 0:01:50.8]} 17. Kh1 {[%clk 0:02:51.8]} 17... Rg5 {[%clk 0:01:49.6]} 18.
Qf3 {[%clk 0:02:52.3]} 18... Be7 {[%clk 0:01:36.8]} 19. Ne4 {[%clk 0:02:50.5]}
19... Rg7 {[%clk 0:01:34.6]} 20. Rfd1 {[%clk 0:02:50]} 20... h5 {[%clk
0:01:32.9]} 21. h4 {[%clk 0:02:46.6]} 21... Kb8 {[%clk 0:01:19.1]} 22. Rac1
{[%clk 0:02:45.7]} 22... Qb6 {[%clk 0:01:07.9]} 23. Bf1 {[%clk 0:02:46.3]} 23...
Nc7 {[%clk 0:00:45]} 24. Bg2 {[%clk 0:02:45.7]} 24... Nb5 {[%clk 0:00:44.8]} 25.
Rd3 {[%clk 0:02:41.4]} 25... a5 {[%clk 0:00:27.2]} 26. a4 {[%clk 0:02:40.5]}
26... Na7 {[%clk 0:00:22]} 27. Rb3 {[%clk 0:02:40.5]} 27... Bb4 {[%clk
0:00:17.1]} 28. c3 {[%clk 0:02:39.8]} 28... dxc3 {[%clk 0:00:15.6]} 29. bxc3
{[%clk 0:02:39.3]} 29... Nc6 {[%clk 0:00:13]} 30. cxb4 {[%clk 0:02:39]} 30...
axb4 {[%clk 0:00:13.7]} 31. Qe3 {[%clk 0:02:25.8]} 31... Nd4 {[%clk 0:00:12.4]}
32. Rcb1 {[%clk 0:02:24.7]} 32... Rc8 {[%clk 0:00:09.9]} 33. Rxb4 {[%clk
0:02:24.6]} 33... Qc7 {[%clk 0:00:09.9]} 34. Nd6 {[%clk 0:02:24.5]} 34... Qxd6
{[%clk 0:00:09.2]} 35. Rxb7+ {[%clk 0:02:25.2]} 35... Ka8 {[%clk 0:00:09.7]} 36.
Rb8+ {[%clk 0:02:22.3]} 36... Ka7 {[%clk 0:00:09.4]} 37. Rxc8 {[%clk 0:02:23.2]}
1-0

[Event "Early-Titled-Tuesday-Blitz-May-28-2024"]
[Site "Chess.com"]
[Date "2024.05.28"]
[Round "1"]
[White "youngKID"]
[Black "Jeppesen08"]
[Result "1-0"]
[WhiteElo "2864"]
[BlackElo "2486"]
[TimeControl "180+1"]
[EndTime "8:05:06 PDT"]
[Termination "youngKID won by resignation"]

1. d4 {[%clk 0:03:00]} 1... e6 {[%clk 0:02:53.6]} 2. e4 {[%clk 0:02:59.5]} 2...
d5 {[%clk 0:02:51.6]} 3. Nd2 {[%clk 0:02:58.7]} 3... dxe4 {[%clk 0:02:50.6]} 4.
Nxe4 {[%clk 0:02:58.5]} 4... Nf6 {[%clk 0:02:51.1]} 5. Nxf6+ {[%clk 0:02:58.2]}
5... Qxf6 {[%clk 0:02:50.8]} 6. Nf3 {[%clk 0:02:58.7]} 6... h6 {[%clk
0:02:49.7]} 7. Bd3 {[%clk 0:02:58.3]} 7... c5 {[%clk 0:02:48.2]} 8. Be3 {[%clk
0:02:49.9]} 8... Nd7 {[%clk 0:02:36]} 9. Qe2 {[%clk 0:02:43.5]} 9... Be7 {[%clk
0:02:30]} 10. O-O-O {[%clk 0:02:37]} 10... O-O {[%clk 0:02:11.5]} 11. g4 {[%clk
0:02:22.2]} 11... cxd4 {[%clk 0:02:00.3]} 12. g5 {[%clk 0:02:16.7]} 12... hxg5
{[%clk 0:01:46.3]} 13. Bxg5 {[%clk 0:02:17.1]} 13... Qxg5+ {[%clk 0:01:44.1]}
14. Nxg5 {[%clk 0:02:17.7]} 14... Bxg5+ {[%clk 0:01:45]} 15. Kb1 {[%clk
0:02:18]} 15... Bf6 {[%clk 0:01:43.7]} 16. Qh5 {[%clk 0:01:56.2]} 16... g6
{[%clk 0:01:41.6]} 17. Bxg6 {[%clk 0:01:32.3]} 17... fxg6 {[%clk 0:01:37.9]} 18.
Qxg6+ {[%clk 0:01:32.5]} 18... Bg7 {[%clk 0:01:38.5]} 19. Rhg1 {[%clk
0:01:31.8]} 19... Rf7 {[%clk 0:01:36.1]} 20. Rxd4 {[%clk 0:01:22.5]} 20... e5
{[%clk 0:01:30.1]} 21. Rdg4 {[%clk 0:00:55.9]} 21... Nf8 {[%clk 0:01:28]} 22.
Qxg7+ {[%clk 0:00:55.4]} 22... Rxg7 {[%clk 0:01:26.3]} 23. Rxg7+ {[%clk
0:00:56]} 23... Kh8 {[%clk 0:01:27.1]} 24. Rg8+ {[%clk 0:00:56.7]} 24... Kh7
{[%clk 0:01:27.8]} 25. Rxf8 {[%clk 0:00:57.4]} 25... b6 {[%clk 0:01:26.7]} 26.
Rgg8 {[%clk 0:00:56.6]} 26... Be6 {[%clk 0:01:19.5]} 27. Rh8+ {[%clk 0:00:54.8]}
1-0

[Event "Early-Titled-Tuesday-Blitz-May-28-2024"]
[Site "Chess.com"]
[Date "2024.05.28"]
[Round "1"]
[White "H3nriqueTV"]
[Black "ril1997"]
[Result "1-0"]
[WhiteElo "2354"]
[BlackElo "2631"]
[TimeControl "180+1"]
[EndTime "8:05:07 PDT"]
[Termination "H3nriqueTV won by checkmate"]

1. e4 {[%clk 0:02:59.9]} 1... e5 {[%clk 0:02:59.8]} 2. Nf3 {[%clk 0:02:59.9]}
2... Nc6 {[%clk 0:03:00.4]} 3. Bb5 {[%clk 0:02:59.9]} 3... a6 {[%clk 0:03:00.9]}
4. Ba4 {[%clk 0:03:00.1]} 4... Nge7 {[%clk 0:03:00.7]} 5. O-O {[%clk 0:03:00.2]}
5... g6 {[%clk 0:03:01]} 6. h3 {[%clk 0:03:00.6]} 6... Bg7 {[%clk 0:03:01.3]} 7.
c3 {[%clk 0:03:00.5]} 7... O-O {[%clk 0:03:01.8]} 8. d4 {[%clk 0:03:00.7]} 8...
exd4 {[%clk 0:03:02.7]} 9. cxd4 {[%clk 0:03:00.9]} 9... d5 {[%clk 0:03:03.3]}
10. e5 {[%clk 0:03:01.3]} 10... f6 {[%clk 0:02:59.7]} 11. Bf4 {[%clk 0:02:59.1]}
11... fxe5 {[%clk 0:02:59.1]} 12. Bxe5 {[%clk 0:02:59]} 12... Nxe5 {[%clk
0:02:59.2]} 13. Nxe5 {[%clk 0:02:59.4]} 13... Bxe5 {[%clk 0:02:52.8]} 14. dxe5
{[%clk 0:02:59.2]} 14... c6 {[%clk 0:02:52.5]} 15. Nc3 {[%clk 0:02:57.2]} 15...
Nf5 {[%clk 0:02:52.2]} 16. Qd2 {[%clk 0:02:52.8]} 16... Be6 {[%clk 0:02:49.3]}
17. Bc2 {[%clk 0:02:43.9]} 17... Qh4 {[%clk 0:02:46.1]} 18. Ne2 {[%clk
0:02:39.1]} 18... c5 {[%clk 0:02:36.6]} 19. Nf4 {[%clk 0:02:33.2]} 19... Qh6
{[%clk 0:02:10.3]} 20. Rad1 {[%clk 0:02:26.9]} 20... Rae8 {[%clk 0:02:07.6]} 21.
Nxe6 {[%clk 0:02:14]} 21... Qxd2 {[%clk 0:02:08.5]} 22. Rxd2 {[%clk 0:02:13.7]}
22... Rxe6 {[%clk 0:02:09.4]} 23. Rxd5 {[%clk 0:02:14.2]} 23... Nd4 {[%clk
0:02:06.7]} 24. Rxd4 {[%clk 0:01:59.9]} 24... cxd4 {[%clk 0:02:03.8]} 25. Bb3
{[%clk 0:02:00]} 25... Kf7 {[%clk 0:02:00.1]} 26. f4 {[%clk 0:01:57.3]} 26...
Ke7 {[%clk 0:01:59.4]} 27. Bxe6 {[%clk 0:01:56.7]} 27... Kxe6 {[%clk 0:02:00.3]}
28. Kf2 {[%clk 0:01:55.5]} 28... Rc8 {[%clk 0:01:59.5]} 29. Re1 {[%clk
0:01:53.5]} 29... h5 {[%clk 0:01:55]} 30. Kf3 {[%clk 0:01:51.4]} 30... d3 {[%clk
0:01:50]} 31. Rd1 {[%clk 0:01:51.3]} 31... Rc2 {[%clk 0:01:48.4]} 32. Rxd3
{[%clk 0:01:51]} 32... Rxb2 {[%clk 0:01:49]} 33. Rd6+ {[%clk 0:01:51]} 33... Kf7
{[%clk 0:01:49.7]} 34. g4 {[%clk 0:01:48.1]} 34... hxg4+ {[%clk 0:01:43.5]} 35.
hxg4 {[%clk 0:01:47]} 35... Rxa2 {[%clk 0:01:44]} 36. f5 {[%clk 0:01:47.3]}
36... g5 {[%clk 0:01:42]} 37. e6+ {[%clk 0:01:45.8]} 37... Kf6 {[%clk
0:01:41.1]} 38. Rd7 {[%clk 0:01:46.1]} 38... Ra3+ {[%clk 0:01:41.2]} 39. Ke4
{[%clk 0:01:45.7]} 39... Ra4+ {[%clk 0:01:41.7]} 40. Kf3 {[%clk 0:01:45.9]}
40... Rf4+ {[%clk 0:01:39.7]} 41. Kg3 {[%clk 0:01:46.3]} 41... Re4 {[%clk
0:01:38.5]} 42. Rf7+ {[%clk 0:01:46]} 42... Ke5 {[%clk 0:01:39.2]} 43. Rxb7
{[%clk 0:01:43.8]} 43... Re3+ {[%clk 0:01:38.1]} 44. Kf2 {[%clk 0:01:43.6]}
44... Re4 {[%clk 0:01:36.6]} 45. Rb8 {[%clk 0:01:40.1]} 45... Kf4 {[%clk
0:01:33.7]} 46. f6 {[%clk 0:01:36.7]} 46... Rxe6 {[%clk 0:01:33.9]} 47. f7
{[%clk 0:01:37]} 47... Rf6 {[%clk 0:01:34.5]} 48. f8=Q {[%clk 0:01:36.3]} 48...
Rxf8 {[%clk 0:01:35.4]} 49. Rxf8+ {[%clk 0:01:36.3]} 49... Kxg4 {[%clk
0:01:36.3]} 50. Ra8 {[%clk 0:01:36.4]} 50... Kh3 {[%clk 0:01:36]} 51. Rxa6
{[%clk 0:01:36.4]} 51... g4 {[%clk 0:01:36.9]} 52. Rg6 {[%clk 0:01:34.2]} 52...
Kh4 {[%clk 0:01:36.3]} 53. Rg8 {[%clk 0:01:34.5]} 53... Kh3 {[%clk 0:01:36.1]}
54. Ke3 {[%clk 0:01:34.8]} 54... g3 {[%clk 0:01:34.4]} 55. Kf3 {[%clk
0:01:34.6]} 55... g2 {[%clk 0:01:35.3]} 56. Rh8# {[%clk 0:01:34.9]} 1-0

[Event "Early-Titled-Tuesday-Blitz-May-28-2024"]
[Site "Chess.com"]
[Date "2024.05.28"]
[Round "1"]
[White "Viktoker"]
[Black "Aswathchess"]
[Result "0-1"]
[WhiteElo "2399"]
[BlackElo "2717"]
[TimeControl "180+1"]
[EndTime "8:05:08 PDT"]
[Termination "Aswathchess won by resignation"]

1. d4 {[%clk 0:02:54.3]} 1... Nf6 {[%clk 0:02:59.3]} 2. c4 {[%clk 0:02:53.7]}
2... e6 {[%clk 0:02:59.4]} 3. Nf3 {[%clk 0:02:49]} 3... d5 {[%clk 0:02:59.2]} 4.
g3 {[%clk 0:02:48.2]} 4... Be7 {[%clk 0:02:56.8]} 5. Bg2 {[%clk 0:02:47.8]} 5...
O-O {[%clk 0:02:57.4]} 6. O-O {[%clk 0:02:47.5]} 6... a5 {[%clk 0:02:57.5]} 7.
Qc2 {[%clk 0:02:43.4]} 7... b6 {[%clk 0:02:51.8]} 8. b3 {[%clk 0:02:42.8]} 8...
Bb7 {[%clk 0:02:51.3]} 9. Nc3 {[%clk 0:02:40.9]} 9... Nbd7 {[%clk 0:02:47]} 10.
Bf4 {[%clk 0:02:39.1]} 10... Rc8 {[%clk 0:02:46.9]} 11. e3 {[%clk 0:02:33.3]}
11... Re8 {[%clk 0:02:45.4]} 12. h4 {[%clk 0:02:32]} 12... c5 {[%clk 0:02:42.3]}
13. Rac1 {[%clk 0:02:26.3]} 13... dxc4 {[%clk 0:02:42.2]} 14. Nb5 {[%clk
0:02:22.4]} 14... cxd4 {[%clk 0:02:39]} 15. exd4 {[%clk 0:02:18.7]} 15... cxb3
{[%clk 0:02:28.5]} 16. Qxb3 {[%clk 0:02:19.6]} 16... Rxc1 {[%clk 0:02:26.7]} 17.
Rxc1 {[%clk 0:02:18.5]} 17... Nd5 {[%clk 0:02:26.7]} 18. Bc7 {[%clk 0:02:07.2]}
18... Nxc7 {[%clk 0:02:25.6]} 19. Rxc7 {[%clk 0:02:02.3]} 19... Bd5 {[%clk
0:02:23.8]} 20. Qc2 {[%clk 0:00:43]} 20... Nf6 {[%clk 0:02:23.8]} 21. a4 {[%clk
0:00:27.2]} 21... Be4 {[%clk 0:02:17.3]} 22. Qc1 {[%clk 0:00:21]} 22... Nd5
{[%clk 0:02:14.2]} 23. Ra7 {[%clk 0:00:16.2]} 23... Qc8 {[%clk 0:02:06.5]} 24.
Qxc8 {[%clk 0:00:15.3]} 24... Rxc8 {[%clk 0:02:07.4]} 25. Ne5 {[%clk 0:00:15.7]}
25... Bxg2 {[%clk 0:02:03.8]} 26. Kh2 {[%clk 0:00:16.3]} 26... Be4 {[%clk
0:01:58.8]} 0-1

[Event "Early-Titled-Tuesday-Blitz-May-28-2024"]
[Site "Chess.com"]
[Date "2024.05.28"]
[Round "1"]
[White "xiaopang123"]
[Black "chucksterf10"]
[Result "0-1"]
[WhiteElo "2313"]
[BlackElo "2633"]
[TimeControl "180+1"]
[EndTime "8:05:09 PDT"]
[Termination "chucksterf10 won by resignation"]

1. d4 {[%clk 0:02:59.8]} 1... d6 {[%clk 0:02:59.9]} 2. Nf3 {[%clk 0:02:59]} 2...
Bg4 {[%clk 0:02:58.8]} 3. g3 {[%clk 0:02:58]} 3... Bxf3 {[%clk 0:02:58.7]} 4.
exf3 {[%clk 0:02:58.4]} 4... c6 {[%clk 0:02:59.6]} 5. Bg2 {[%clk 0:02:58]} 5...
Nf6 {[%clk 0:03:00.5]} 6. O-O {[%clk 0:02:58.2]} 6... g6 {[%clk 0:03:00.7]} 7.
c4 {[%clk 0:02:57.7]} 7... Bg7 {[%clk 0:03:01.6]} 8. Nc3 {[%clk 0:02:57.6]} 8...
O-O {[%clk 0:03:02.3]} 9. d5 {[%clk 0:02:57.6]} 9... Nbd7 {[%clk 0:03:01.7]} 10.
dxc6 {[%clk 0:02:53.9]} 10... bxc6 {[%clk 0:03:02]} 11. f4 {[%clk 0:02:53.7]}
11... Qc7 {[%clk 0:02:58.3]} 12. Be3 {[%clk 0:02:53.4]} 12... Rab8 {[%clk
0:02:56.8]} 13. b3 {[%clk 0:02:46.7]} 13... Ng4 {[%clk 0:02:48.9]} 14. Bd4
{[%clk 0:02:34.4]} 14... e5 {[%clk 0:02:48.8]} 15. fxe5 {[%clk 0:02:33.8]} 15...
dxe5 {[%clk 0:02:48.7]} 16. Bxa7 {[%clk 0:02:26.1]} 16... Qxa7 {[%clk
0:02:38.3]} 17. Qxg4 {[%clk 0:02:24.9]} 17... f5 {[%clk 0:02:39]} 18. Qe2 {[%clk
0:02:16.2]} 18... e4 {[%clk 0:02:37.8]} 19. Rac1 {[%clk 0:02:14.8]} 19... Ne5
{[%clk 0:02:36]} 20. Na4 {[%clk 0:02:06.8]} 20... Nd3 {[%clk 0:02:33.9]} 21.
Rcd1 {[%clk 0:02:01.6]} 21... Bd4 {[%clk 0:02:22.9]} 22. Rxd3 {[%clk 0:01:53.7]}
22... exd3 {[%clk 0:02:21.8]} 23. Qxd3 {[%clk 0:01:54]} 23... Rbd8 {[%clk
0:02:19.4]} 24. Qf3 {[%clk 0:01:52.6]} 24... c5 {[%clk 0:02:11.9]} 25. h4 {[%clk
0:01:51.5]} 25... Qe7 {[%clk 0:02:08.1]} 26. Nb6 {[%clk 0:01:36.9]} 26... Rfe8
{[%clk 0:02:05.4]} 27. Qc6 {[%clk 0:01:28.9]} 27... Rd6 {[%clk 0:02:02.4]} 28.
Nd5 {[%clk 0:01:18.7]} 28... Bxf2+ {[%clk 0:01:40.1]} 29. Kh1 {[%clk 0:01:02.7]}
29... Qd8 {[%clk 0:01:29.9]} 30. Qb7 {[%clk 0:00:56.8]} 30... Bxg3 {[%clk
0:01:27.7]} 0-1

[Event "Early-Titled-Tuesday-Blitz-May-28-2024"]
[Site "Chess.com"]
[Date "2024.05.28"]
[Round "1"]
[White "KatakuriDono"]
[Black "karinachess1"]
[Result "0-1"]
[WhiteElo "2266"]
[BlackElo "2607"]
[TimeControl "180+1"]
[EndTime "8:05:19 PDT"]
[Termination "karinachess1 won by resignation"]

1. d4 {[%clk 0:03:00.5]} 1... Nf6 {[%clk 0:03:00.2]} 2. Nf3 {[%clk 0:02:59.3]}
2... e6 {[%clk 0:03:00.6]} 3. g3 {[%clk 0:02:56.4]} 3... d5 {[%clk 0:03:00.5]}
4. Bg2 {[%clk 0:02:56.1]} 4... b5 {[%clk 0:03:01]} 5. O-O {[%clk 0:02:53]} 5...
Bb7 {[%clk 0:03:01.4]} 6. a4 {[%clk 0:02:52.1]} 6... b4 {[%clk 0:03:01.7]} 7. c4
{[%clk 0:02:50.9]} 7... Nbd7 {[%clk 0:03:02.3]} 8. cxd5 {[%clk 0:02:47]} 8...
exd5 {[%clk 0:02:56.3]} 9. Nbd2 {[%clk 0:02:38.9]} 9... Be7 {[%clk 0:02:55.9]}
10. Nb3 {[%clk 0:02:37.3]} 10... O-O {[%clk 0:02:54.2]} 11. Na5 {[%clk
0:02:33.2]} 11... Rb8 {[%clk 0:02:41.7]} 12. Nxb7 {[%clk 0:02:32.6]} 12... Rxb7
{[%clk 0:02:42.6]} 13. a5 {[%clk 0:02:23.2]} 13... b3 {[%clk 0:02:40.4]} 14. Bf4
{[%clk 0:02:07.3]} 14... c5 {[%clk 0:02:38.4]} 15. dxc5 {[%clk 0:02:04.4]} 15...
Nxc5 {[%clk 0:02:39.3]} 16. Nd4 {[%clk 0:01:57.8]} 16... Qd7 {[%clk 0:02:36.4]}
17. Rc1 {[%clk 0:01:38.6]} 17... Rb4 {[%clk 0:02:36.2]} 18. Be3 {[%clk
0:01:32.8]} 18... Rc8 {[%clk 0:02:27.8]} 19. Qd2 {[%clk 0:01:29.8]} 19... Nce4
{[%clk 0:02:24.9]} 20. Qd3 {[%clk 0:01:19.8]} 20... Nc5 {[%clk 0:02:07.7]} 21.
Qd2 {[%clk 0:01:19.2]} 21... Rc4 {[%clk 0:01:58.2]} 22. Rxc4 {[%clk 0:01:07.8]}
22... dxc4 {[%clk 0:01:59.1]} 23. Rc1 {[%clk 0:01:08.1]} 23... Nce4 {[%clk
0:01:54.8]} 24. Qd1 {[%clk 0:01:02.4]} 24... Bb4 {[%clk 0:01:51.5]} 25. f3
{[%clk 0:00:51.5]} 25... Bd2 {[%clk 0:01:34.9]} 26. fxe4 {[%clk 0:00:44]} 26...
Bxe3+ {[%clk 0:01:33]} 27. Kh1 {[%clk 0:00:43.7]} 27... Bxc1 {[%clk 0:01:28.4]}
28. Qg1 {[%clk 0:00:40.4]} 28... Bxb2 {[%clk 0:01:24.8]} 29. Nf5 {[%clk
0:00:40.1]} 29... c3 {[%clk 0:01:25]} 30. e5 {[%clk 0:00:38.4]} 30... Qxf5
{[%clk 0:01:24.6]} 31. exf6 {[%clk 0:00:38.7]} 31... c2 {[%clk 0:01:24.3]} 0-1

[Event "Early-Titled-Tuesday-Blitz-May-28-2024"]
[Site "Chess.com"]
[Date "2024.05.28"]
[Round "1"]
[White "Ginger_GM"]
[Black "UK_23"]
[Result "1-0"]
[WhiteElo "2738"]
[BlackElo "2415"]
[TimeControl "180+1"]
[EndTime "8:05:24 PDT"]
[Termination "Ginger_GM won by resignation"]

1. f4 {[%clk 0:02:56.9]} 1... e5 {[%clk 0:02:53.3]} 2. e4 {[%clk 0:02:53.7]}
2... Nf6 {[%clk 0:02:51.6]} 3. fxe5 {[%clk 0:02:46.9]} 3... Nxe4 {[%clk
0:02:51.5]} 4. Qf3 {[%clk 0:02:40.5]} 4... d5 {[%clk 0:02:44.5]} 5. d3 {[%clk
0:02:36.5]} 5... Ng5 {[%clk 0:02:42]} 6. Qg3 {[%clk 0:02:23.4]} 6... Be7 {[%clk
0:02:37]} 7. h4 {[%clk 0:02:20.2]} 7... Ne6 {[%clk 0:02:35.2]} 8. Nf3 {[%clk
0:02:19.7]} 8... Nc6 {[%clk 0:02:26.6]} 9. c3 {[%clk 0:02:13.3]} 9... d4 {[%clk
0:02:26.2]} 10. Nbd2 {[%clk 0:02:04.8]} 10... b6 {[%clk 0:02:24.1]} 11. Ne4
{[%clk 0:02:03.9]} 11... Bb7 {[%clk 0:02:23.9]} 12. Be2 {[%clk 0:02:01.5]} 12...
h6 {[%clk 0:02:22.1]} 13. c4 {[%clk 0:01:58]} 13... Qd7 {[%clk 0:02:17.1]} 14.
a3 {[%clk 0:01:56.6]} 14... a5 {[%clk 0:02:17.2]} 15. O-O {[%clk 0:01:54.7]}
15... a4 {[%clk 0:02:16.9]} 16. Bd2 {[%clk 0:01:53.6]} 16... g5 {[%clk
0:02:10.5]} 17. h5 {[%clk 0:01:49]} 17... O-O-O {[%clk 0:01:57.1]} 18. Nh2
{[%clk 0:01:48.8]} 18... Nf4 {[%clk 0:01:50.4]} 19. Bg4 {[%clk 0:01:38.5]} 19...
Ne6 {[%clk 0:01:46.8]} 20. Rxf7 {[%clk 0:01:37.9]} 20... Rdf8 {[%clk 0:01:46.9]}
21. Raf1 {[%clk 0:01:37]} 21... Rxf7 {[%clk 0:01:47]} 22. Rxf7 {[%clk
0:01:37.5]} 22... Rf8 {[%clk 0:01:47.1]} 23. Qh3 {[%clk 0:01:36.3]} 23... Ncd8
{[%clk 0:01:46.8]} 24. Rxf8 {[%clk 0:01:34.2]} 24... Bxf8 {[%clk 0:01:43.9]} 25.
Nf6 {[%clk 0:01:29.3]} 25... Qf7 {[%clk 0:01:39.5]} 26. Nf3 {[%clk 0:01:24.6]}
26... Kb8 {[%clk 0:01:38.5]} 27. Kh1 {[%clk 0:01:23.5]} 27... c5 {[%clk
0:01:31.3]} 28. Bf5 {[%clk 0:01:20]} 28... Nf4 {[%clk 0:01:25.9]} 29. Bxf4
{[%clk 0:01:18.2]} 29... gxf4 {[%clk 0:01:26.8]} 30. Qg4 {[%clk 0:01:14.8]}
30... Nc6 {[%clk 0:01:24.5]} 31. Nd7+ {[%clk 0:01:06.1]} 31... Ka7 {[%clk
0:01:16.9]} 32. e6 {[%clk 0:01:06.2]} 32... Qe7 {[%clk 0:01:16.9]} 33. Qxf4
{[%clk 0:01:04.2]} 33... Bg7 {[%clk 0:01:12.9]} 34. Qc7 {[%clk 0:01:02.7]} 1-0

[Event "Early-Titled-Tuesday-Blitz-May-28-2024"]
[Site "Chess.com"]
[Date "2024.05.28"]
[Round "1"]
[White "OhanyanEminChess"]
[Black "Gryffindorac8"]
[Result "1-0"]
[WhiteElo "2819"]
[BlackElo "2468"]
[TimeControl "180+1"]
[EndTime "8:05:25 PDT"]
[Termination "OhanyanEminChess won by resignation"]

1. Nf3 {[%clk 0:02:59.1]} 1... Nf6 {[%clk 0:02:59.6]} 2. c3 {[%clk 0:02:58]}
2... d5 {[%clk 0:02:56.6]} 3. e3 {[%clk 0:02:57.3]} 3... c5 {[%clk 0:02:55.9]}
4. g3 {[%clk 0:02:55.9]} 4... Nc6 {[%clk 0:02:55.2]} 5. d4 {[%clk 0:02:54.9]}
5... g6 {[%clk 0:02:45.9]} 6. Bg2 {[%clk 0:02:54.5]} 6... Bg7 {[%clk 0:02:45.7]}
7. dxc5 {[%clk 0:02:54.8]} 7... O-O {[%clk 0:02:45.4]} 8. O-O {[%clk 0:02:55]}
8... e5 {[%clk 0:02:27.9]} 9. b4 {[%clk 0:02:54.5]} 9... e4 {[%clk 0:02:26]} 10.
Nd4 {[%clk 0:02:53.7]} 10... Ne5 {[%clk 0:02:21.8]} 11. Nd2 {[%clk 0:02:51.4]}
11... Bg4 {[%clk 0:02:21]} 12. f3 {[%clk 0:02:49.2]} 12... exf3 {[%clk
0:02:12.9]} 13. N2xf3 {[%clk 0:02:50.1]} 13... Nxf3+ {[%clk 0:02:11.4]} 14. Bxf3
{[%clk 0:02:48.3]} 14... Bxf3 {[%clk 0:02:03]} 15. Qxf3 {[%clk 0:02:48.8]} 15...
Ne4 {[%clk 0:02:03]} 16. Ne2 {[%clk 0:02:41]} 16... Nxc3 {[%clk 0:02:00.2]} 17.
Nxc3 {[%clk 0:02:41.3]} 17... Bxc3 {[%clk 0:02:00.2]} 18. Rb1 {[%clk 0:02:42.2]}
18... d4 {[%clk 0:01:58.9]} 19. exd4 {[%clk 0:02:41.4]} 19... Bxd4+ {[%clk
0:01:58.6]} 20. Kh1 {[%clk 0:02:40.8]} 20... Qe7 {[%clk 0:01:46.8]} 21. Bf4
{[%clk 0:02:37.6]} 21... Rad8 {[%clk 0:01:28.1]} 22. Bd6 {[%clk 0:02:34.2]}
22... Rxd6 {[%clk 0:01:24.7]} 23. cxd6 {[%clk 0:02:35.1]} 23... Qxd6 {[%clk
0:01:24.7]} 24. Qxb7 {[%clk 0:02:34.6]} 24... Qe6 {[%clk 0:01:17.7]} 25. a4
{[%clk 0:02:30.2]} 25... Qa2 {[%clk 0:00:59.8]} 26. a5 {[%clk 0:02:25.8]} 26...
Re8 {[%clk 0:00:52]} 27. Rbe1 {[%clk 0:02:23.3]} 27... Rd8 {[%clk 0:00:42.2]}
28. Qg2 {[%clk 0:02:15.2]} 28... Qc4 {[%clk 0:00:38.9]} 29. Rb1 {[%clk
0:02:05.4]} 29... Bc3 {[%clk 0:00:36.9]} 30. Rbc1 {[%clk 0:01:54.9]} 30... Qxb4
{[%clk 0:00:32.6]} 31. Qf3 {[%clk 0:01:55.2]} 31... Bg7 {[%clk 0:00:28.5]} 32.
Qxf7+ {[%clk 0:01:52.3]} 32... Kh8 {[%clk 0:00:28.5]} 33. Rce1 {[%clk
0:01:40.7]} 33... Qxa5 {[%clk 0:00:25.1]} 34. Re8+ {[%clk 0:01:39.4]} 1-0